Workbook

Sheet ENG
B1: Measurement unit | C1: 2020 | D1: 2019 | E1: Act 11/2018 on non-financial information and diversity | F1: GRI (Global Reporting Initiative) | G1: SDGs (Sustainable Development Goals)
A2: Materiality
A3: Material issues (high and medium materiality) | B3: uds | C3: 21 | D3: 16 | F3: 102-21; 102-46, 102-47
A4: Enquiries | B4: uds | C4: 4657 | D4: 3285 | F4: 102-21; 102-46, 102-47
A5: Sahreholders | B5: uds | C5: 1820 | D5: 1774 | F5: 102-21; 102-40
A6: Customers | B6: uds | C6: 1657 | D6: 1069 | F6: 102-21; 102-40
A7: Employees | B7: uds | C7: 893 | D7: 327 | F7: 102-21; 102-40
A8: Experts anf analysts | B8: uds | C8: 287 | D8: 115 | F8: 102-21; 102-40
A10: Corporate governance
A11: Good Governance Recommendations (CNMV) - Full Compliance | B11: units | C11: 57 | D11: 58 | F11: 102-18; 102-22
A12: Good Governance Recommendations (CNMV) - Partial Compliance | B12: units | C12: 4 | D12: 3 | F12: 102-18; 102-22
A13: Good Governance Recommendations (CNMV) - Non-compliance | B13: units | C13: 2 | D13: 2 | F13: 102-18; 102-22
A14: Quorum General Shareholders' Meeting (AGM) (Ordinary) | B14: % | C14: 0.667 | D14: 0.656 | F14: 102-18; 102-22
A15: Average approval of items on the AGM agenda | B15: % | C15: 0.96 | D15: 0.96 | F15: 102-18; 102-22
A16: Independent board members | B16: % | C16: 0.429 | D16: 0.438 | F16: 102-18; 102-22
A17: Women on the Board | B17: % | C17: 0.429 | D17: 0.375 | F17: 102-18; 102-22; 405-1
A18: Average age of Board Members | B18: years | C18: 65 | D18: 61 | F18: 102-18; 102-22
A19: Average attendance at Board meetings | B19: % | C19: 1 | D19: 0.979 | F19: 102-18; 102-22
A20: Board Members - Average term in position | B20: years | C20: 4.8 | D20: 4.1 | F20: 102-18; 102-22
A21: Independent Board Members - Average term in position | B21: years | C21: 5.1 | D21: 4.9 | F21: 102-18; 102-22
A22: Average remuneration of Board Members - Men1 | B22: € thousands | C22: 308 | D22: 289 | E22: ü | F22: 405-1; 405-1
A23: Average remuneration of Board Members - Women1 | B23: € thousands | C23: 175 | D23: 146 | E23: ü | F23: 405-1; 405-2
A24: 1. This does not include remuneration derived from positions other than those of representation on the Board of Directors of CaixaBank, S.A.
A26: Shares and Shareholder structure
A27: Share price at end of period | B27: €/share | C27: 2.101 | D27: 2.798
A28: Average daily trading volume | B28: units | C28: 23637 | D28: 23583
A29: Percentage stake CriteriaCaixa | B29: % | C29: 0.4 | D29: 0.4 | F29: 102-5
A30: Percentage stake in Own Shares, Board Members and other shareholders with Board representation | B30: % | C30: 0.028 | D30: 0.043 | F30: 102-5
A31: Percentage stake free float - management | B31: % | C31: 0.571 | D31: 0.557 | F31: 102-5
A32: Free float - Retail | B32: % | C32: 0.34 | D32: 0.33 | F32: 102-5
A33: Free float - Institutional | B33: % | C33: 0.66 | D33: 0.67 | F33: 102-5
A34: Shareholders | B34: units | C34: 564723 | D34: 578123 | F34: 102-5
A35: Shareholder remuneration for the year | B35: €/share | C35: 0.07 | D35: 0.15
A37: Commercial positioning
A38: Customers | B38: M | C38: 15.2 | D38: 15.6 | E38: ü | F38: 102-2; 102-6; 102-7
A39: Customers Spain | B39: M | C39: 13.4 | D39: 13.7 | E39: ü | F39: 102-2; 102-6; 102-7
A40: Customers Portugal | B40: M | C40: 1.9 | D40: 1.9 | E40: ü | F40: 102-2; 102-6; 102-7
A42: Market shares in Spain
A43: Share of private customers | B43: % | C43: 0.309 | D43: 0.278 | F43: 102-2; 102-6; 102-7
A44: Share of private customers as primary bank | B44: % | C44: 0.239 | D44: 0.244 | F44: 102-2; 102-6; 102-7
A45: Share of Spanish self-employed workers1 | B45: % | C45: 0.331 | D45: 0.334 | F45: 102-2; 102-6; 102-7 | G45: 8
A46: Share of businesses (turnover <1 €M) | B46: % | C46: 0.242 | D46: 0.241 | F46: 102-2; 102-6; 102-7
A47: Share of self-employed farmers | B47: % | C47: 0.278 | D47: 0.277 | F47: 102-2; 102-6; 102-7 | G47: 1; 6; 14
A48: Loans1 | B48: % | C48: 0.162 | D48: 16.0% | F48: 102-2; 102-6; 102-7
A49: Loans to business1 | B49: % | C49: 0.165 | D49: 15.4% | F49: 102-2; 102-6; 102-7 | G49: 8
A50: Mortgage loans1 | B50: % | C50: 0.153 | D50: 15.7% | F50: 102-2; 102-6; 102-7
A51: Deposits1 | B51: % | C51: 0.156 | D51: 15.2% | F51: 102-2; 102-6; 102-7
A52: Long-term saving | B52: % | C52: 0.233 | D52: 22.5% | F52: 102-2; 102-6; 102-7
A53: Pension plans | B53: % | C53: 0.263 | D53: 25.5% | F53: 102-2; 102-6; 102-7
A54: Investment funds | B54: % | C54: 0.175 | D54: 17.1% | F54: 102-2; 102-6; 102-7
A55: Life-savings insurance2 | B55: % | C55: 0.299 | D55: 28.7% | F55: 102-2; 102-6; 102-7
A56: Life-risk insurance2 | B56: % | C56: 0.215 | D56: 19.4% | F56: 102-2; 102-6; 102-7
A57: Health insurance | B57: % | C57: 0.305 | D57: 30.1% | F57: 102-2; 102-6; 102-7
A58: Card turnover | B58: % | C58: 0.233 | D58: 23.5% | F58: 102-2; 102-6; 102-7
A59: POS invoicing | B59: % | C59: 0.265 | D59: 27.5% | F59: 102-2; 102-6; 102-7
A60: Direct deposits of pensions2 | B60: % | C60: 0.201 | D60: 0.2 | F60: 102-2; 102-6; 102-7
A62: Market share in Portugal
A63: Loans1 | B63: % | C63: 0.107 | D63: 0.104 | F63: 102-2; 102-6; 102-7
A64: Mortgage loans1 | B64: % | C64: 0.122 | D64: 0.119 | F64: 102-2; 102-6; 102-7
A65: Deposits1 | B65: % | C65: 0.106 | D65: 0.101 | F65: 102-2; 102-6; 102-7
A66: Direct deposits of salaries1 | B66: % | C66: 0.096 | D66: 0.097 | F66: 102-2; 102-6; 102-7
A67: Investment funds (including PPRs)1 | B67: % | C67: 0.188 | D67: 0.2 | F67: 102-2; 102-6; 102-7
A68: Capitalisation insurance (including PPRs)1 | B68: % | C68: 0.114 | D68: 0.112 | F68: 102-2; 102-6; 102-7
A69: 1. Data as at November 2020. 2. Data as at September 2020.
A71: Local accessible banking
A72: Network in Spain
A73: Branches | B73: units | C73: 3782 | D73: 4118 | E73: ü | F73: 102-2; 102-6; 102-7
A74: Retail branches | B74: units | C74: 3571 | D74: 3918 | F74: 102-2; 102-6; 102-7
A75: of which Stores | B75: units | C75: 548 | D75: 458 | F75: 102-2; 102-6; 102-7
A76: of which Business Banks | B76: units | C76: 49 | D76: =28+14 -> 42 | F76: 102-2; 102-6; 102-7
A77: of which AgroBank rural branches | B77: units | C77: 888 | D77: 919 | F77: 102-2; 102-6; 102-7 | G77: 1; 6; 14
A78: Private Banking Centres | B78: units | C78: 68 | D78: 127 | F78: 102-2; 102-6; 102-7
A79: Business Centres | B79: units | C79: 128 | D79: 53 | F79: 102-2; 102-6; 102-7
A80: Institutional Banking Centres | B80: units | C80: 14 | D80: 15 | F80: 102-2; 102-6; 102-7
A81: Corporate Banking Centres | B81: units | C81: 1 | D81: 1 | F81: 102-2; 102-6; 102-7
A82: International points of presence | B82: units | C82: 27 | D82: 27 | F82: 102-2; 102-6; 102-7
A83: Spanish towns with >5,000 inhabitants where CaixaBank has a presence | B83: % | C83: 0.94 | D83: 0.94 | E83: ü | G83: 1; 11
A84: Spanish towns with >10,000 inhabitants where CaixaBank has a presence | B84: % | C84: 1 | D84: 1 | E84: ü | G84: 1; 11
A85: Number of towns in which it is the only entity present | B85: units | C85: 215 | D85: 229 | E85: ü | G85: 1; 11
A86: Citizens with a branch in their municipality | B86: % | C86: 0.91 | D86: 0.91 | E86: ü | G86: 1; 11
A87: Citizens in small municipalities (< 5,000 inhabitants) covered by a CaixaBank branch or agent | B87: % | C87: 0.33 | D87: n/a | E87: ü | G87: 1; 11
A88: Accessible branches | B88: % | C88: 0.94 | D88: 0.93 | G88: 1; 11
A89: Branches where barriers have been removed | B89: units | C89: 49 | D89: 64 | G89: 1; 11
A90: ATMs | B90: units | C90: 8827 | D90: 9111 | E90: ü | F90: 102-2; 102-6
A91: Accessible ATMs | B91: % | C91: 0.99 | D91: 0.99 | E91: ü | G91: 1; 11
A92: ATMs with video screens providing help in sign language | B92: % | C92: 0.998 | D92: 0.996 | G92: 1; 11
A94: Network in Portugal
A95: Portugal branches | B95: units | C95: 421 | D95: 477 | E95: ü | F95: 102-2; 102-6; 102-7
A96: Retail branches | B96: units | C96: 360 | D96: 406 | F96: 102-2; 102-6; 102-7
A97: Premier/Private Centres | B97: units | C97: 27 | D97: 36 | F97: 102-2; 102-6; 102-7
A98: Business Centres | B98: units | C98: 34 | D98: 34 | F98: 102-2; 102-6; 102-7
A99: Portuguese towns > 10,000 inhabitants with presence | B99: % | C99: 0.83 | D99: 0.85 | E99: ü | G99: 1; 11
A100: Accessible branches | B100: % | C100: 0.26 | D100: 0.38 | G100: 1; 11
A101: Branches where barriers have been removed | B101: units | C101: n/a | D101: 5 | G101: 1; 11
A102: ATMs - Portugal | B102: units | C102: 1285 | D102: 1380 | E102: ü | F102: 102-2; 102-6; 102-7
A104: Innovation, multi-channel communication and digitalisation
A105: CaixaBank Spain
A106: Digital clients (Now Customers) | B106: M | C106: 6.9 | D106: 6.5 | G106: 9
A107: Digital clients (Now Customers) | B107: % | C107: 0.677 | D107: 0.617 | G107: 9
A108: Mobile customers | B108: M | C108: =2.9 -> 2.9 | D108: n.d. | G108: 9
A109: Mobile customers | B109: % | C109: 0.425 | D109: 0.38 | G109: 9
A110: Share of digital customers | B110: % | C110: 0.344 | D110: 0.3 | G110: 9
A111: Customers that connect daily (12-month average) | B111: M | C111: 2.5 | D111: 1.8 | G111: 9
A112: inTouch customers | B112: M | C112: 1.4 | D112: 1.3 | G112: 9
A113: imagin customers1 | B113: M | C113: 3 | D113: 1.4 | G113: 9
A114: Cards downloaded from mobile phones | B114: M | C114: 2.3 | D114: 1.91 | G114: 9
A116: BPI
A117: Digital customers (BPI Net) | B117: M | C117: 0.7 | D117: n/a | G117: 9
A118: Digital customers (BPI Net) | B118: % | C118: 0.467 | D118: n/a | G118: 9
A120: CaixaBank Group 2
A121: Cards issued | B121: M | C121: 18.3 | D121: 17.6
A122: Card turnover | B122: €m | C122: 50892 | D122: 52052
A123: Businesses/PoS | B123: units | C123: 438889 | D123: 423767
A124: Invoicing in dataphones | B124: €m | C124: =47344+1854 -> 49198 | D124: 55499
A125: 1. Includes 1.8 M customers over 18 years of age, 1.1 M customers under-18 and non-customer registered users. In 2019, there were 1.4 M customers over 18.
A126: 2. Does not include Money To Pay.
A128: Customer experience and quality
A129: Users contacted | B129: units | C129: 228537 | D129: 399480
A131: CaixaBank Spain
A132: Net Promoter Score Retail (NPS) | B132: % | C132: 0.289 | D132: 0.298
A133: Committed customers | B133: % | C133: 0.348 | D133: 0.35
A134: Experience Index (IEX, scale 0-100) | B134: units | C134: 86.1 | D134: 86.3
A136: BPI
A137: Individuals IEX (scale 0-100) | B137: units | C137: 91 | D137: 87.7
A139: Cybersecurity, efficiency and IT infrastructure
A140: Investment in information security | B140: €m | C140: 50 | D140: 50 | G140: 9; 16
A141: People in the Security & Governance team | B141: units | C141: 39 | D141: 36 | G141: 9; 16
A142: Phishing simulations per employee/year | B142: units | C142: 12 | D142: 12 | G142: 9; 16
A143: 0-clickers in phishing campaigns | B143: % | C143: 0.54 | D143: 0.48 | G143: 9; 16
A144: Employees trained in Cybersecurity | B144: % | C144: 0.98 | D144: 0.98 | G144: 9; 16
A145: Investment in development and technology | B145: €m | C145: =626+81+8+4+22+3+1+25+1+10+50+102 -> 933 | D145: 931 | G145: 9
A146: Transactions processed | B146: M | C146: 120666 | D146: 98963
A147: Relevant incidents resolved in less than 4 hours | B147: % | C147: 0.79 | D147: 0.887
A148: Number of applications managed in the internal cloud - Degree of cloud adoption | B148: Units/% | C148: 476/16.6 | D148: 400/9.9
A149: Data managed daily in the datapool model | B149: TB | C149: 1100 | D149: 650
A150: Regulatory reports generated using datapool | B150: % | C150: 0.822 | D150: 0.775
A151: Cases of robotics implemented | B151: units | C151: 295 | D151: 144
A152: Time dedicated to administrative processes in branches | B152: % | C152: 0.165 | D152: 0.185
A153: Cognitive assistants for administrative processes (AI) | B153: units | C153: 3 | D153: 3
A154: Improved project time-to-market | B154: % | C154: - 5.8% | D154: -0.11
A156: People working in CaixaBank
A157: CaixaBank Group employees | B157: units | C157: 34434 | D157: 35736 | E157: ü | F157: 102-8
A158: CaixaBank, S.A. | B158: units | C158: 27404 | D158: 27572 | F158: 102-8
A159: BPI | B159: units | C159: 4622 | D159: 4840 | F159: 102-8
A160: Companies of the Group | B160: units | C160: =+C157-C159-C158 -> 2408 | D160: =+D157-D158-D159 -> 3324 | F160: 102-8
A161: Average age | B161: years | C161: 43.7 | D161: 42.6 | F161: 102-8
A162: Average length of service | B162: years | C162: 16 | D162: 15.5 | F162: 102-8
A163: Number of employees with disabilities | B163: units | C163: 362 | D163: 343 | E163: ü | F163: 102-8; 405-1
A164: Employees with permanent or indefinite full-time contracts | B164: % | C164: =35169/35434 -> 0.9925213072 | D164: 0.983 | F164: 102-8
A165: Female | B165: % | C165: 0.546 | D165: 0.548 | E165: ü | F165: 102-8 ; 405-1 | G165: 5
A166: Women in managerial positions, starting from A and B branch asst. manager1 | B166: % | C166: 0.416 | D166: 0.413 | F166: 102-8; 405-1 | G166: 5
A167: Management positions covered internally1 | B167: % | C167: 0.991 | D167: 0.993 | F167: 102-8
A168: Average remuneration | B168: € | C168: 59864 | D168: 58902 | E168: ü | F168: 102-8, 401-1
A169: Average remuneration - Men | B169: € | C169: 66591 | D169: 65857 | E169: ü | F169: 405-2 ; 102-8; 102-38 ; 102-39
A170: Average remuneration - Women | B170: € | C170: 54285 | D170: 53076 | E170: ü | F170: 405-2 ; 102-38 ; 102-39; 102-8
A171: Salary gap | B171: % | C171: 0.0177 | D171: 0.0169 | E171: ü | F171: 102-8; 405-2
A172: Average remuneration - Upper management | B172: € | C172: 98509 | D172: 97444 | E172: ü | F172: 405-2 ; 102-38 ; 102-39; 102-8 | G172: 5
A173: Average Remuneration - Middle management | B173: € | C173: 70601 | D173: 69375 | E173: ü | F173: 405-2 ; 102-38 ; 102-39; 102-8
A174: Average remuneration - Other employees | B174: € | C174: 48100 | D174: 46497 | E174: ü | F174: 405-2 ; 102-38 ; 102-39; 102-8
A175: Training hours per employee | B175: units | C175: 73.3 | D175: 98 | E175: ü | F175: 404-1 ; 102-8
A176: Investment in training by employee | B176: € | C176: 417 | D176: 456 | E176: ü | F176: 404-1 ; 102-8
A177: Professionals certified beyond compulsory MIFID II training. | B177: units | C177: 6557 | D177: 6548 | F177: 404-1 ; 404-2; 102-8
A178: Employees with financial advisory certification | B178: units | C178: 18710 | D178: 18074 | F178: 404-1 ; 404-2; 102-8
A179: Employees trained in the Real Estate Credit Act | B179: units | C179: 18066 | D179: 9863 | F179: 404-1 ; 404-2; 102-8
A180: New hires | B180: uds | C180: 640 | D180: 1125 | E180: ü | F180: 102-8; 401-1
A181: New hires - women | B181: uds | C181: 307 | D181: 510 | E181: ü | F181: 102-8; 401-1
A182: New hires - men | B182: uds | C182: 333 | D182: 615 | E182: ü | F182: 102-8; 401-1
A183: Layoffs | B183: units | C183: 88 | D183: 92 | E183: ü | F183: 102-8
A184: Layoffs - women | B184: units | C184: 45 | D184: 40 | E184: ü | F184: 102-8
A185: Layoffs - men | B185: units | C185: 43 | D185: 52 | E185: ü | F185: 102-8
A186: Undesired turnover | B186: % | C186: 0.0025 | D186: 0.003 | E186: ü | F186: 401-1; 102-8
A187: Employees covered by a collective agreement | B187: % | C187: 1 | D187: 1 | E187: ü | F187: 102-8; 102-41
A188: Employees who enjoyed reductions in working hours (childcare)1 | B188: units | C188: 1080 | D188: 1691 | F188: 102-8 | G188: 5
A189: Employees on leave of absence (personal care, etc.)1 | B189: units | C189: 769 | D189: 555 | F189: 102-8 | G189: 5
A190: Employees who enjoyed paid leave1 | B190: units | C190: 2344 | D190: 2555 | F190: 102-8 | G190: 5
A191: Number of work-related accidents | B191: units | C191: =280+5 -> 285 | D191: 523 | E191: ü | F191: 403-9; 102-8
A192: Number of work-related accidents - Women | B192: units | C192: =180+3 -> 183 | D192: =345+2 -> 347 | E192: ü | F192: 403-9; 102-8
A193: Number of work-related accidents - Men | B193: units | C193: =100+2 -> 102 | D193: =171+5 -> 176 | E193: ü | F193: 403-9; 102-8
A194: Frequency of work-related accidents (accident rate) | B194: units | C194: 1.04 | D194: 1.77 | E194: ü | F194: 403-9; 102-8
A195: Frequency of work-related accidents (accident rate) - Women | B195: units | C195: 1.48 | D195: 2.43 | E195: ü | F195: 403-9; 102-8
A196: Frequency of work-related accidents (accident rate) - Men | B196: units | C196: 0.52 | D196: 1.01 | E196: ü | F196: 403-9; 102-8
A197: Rate of absenteeism (manageable) | B197: % | C197: 0.034 | D197: 0.0282 | E197: ü | F197: 102-8
A198: Commitment Study Participation | B198: % | C198: 0.7 | D198: n/a | F198: 102-8
A199: Commitment Study Overall Satisfaction2 | B199: % | C199: 0.71 | D199: n/a | F199: 102-8
A200: 1. CaixaBank, S.A.
A201: 2. Total favourable (TF). Biannual study. In 2018 TF was 75%.
A203: Responsible and Ethical Behaviour
A204: Employees with remuneration linked to training courses on conduct | B204: units | C204: 34605 | D204: 29707 | E204: ü | F204: 102-17; 205-2; 412-2 | G204: 12; 16
A205: Awareness-raising activities. | B205: units | C205: 260 | D205: 313 | E205: ü | F205: 102-17; 205-1; 205-2; 412-2 | G205: 12; 16
A206: Enquiries and complaints channel - Complaints | B206: units | C206: 38 | D206: 21 | E206: ü | F206: 102-17; 205-1; 412-1 | G206: 12; 16
A207: About Conflicts of interest | B207: units | C207: 3 | D207: n/a | E207: ü | G207: 12; 16
A208: About Internal code of conduct for securities markets | B208: units | C208: 0 | D208: n/a | E208: ü | G208: 12; 16
A209: About Anti-corruption Policy | B209: units | C209: 1 | D209: n/a | E209: ü | F209: 205-1 | G209: 12; 16
A210: About Product marketing, transparency and customer protection | B210: units | C210: 15 | D210: n/a | E210: ü | F210: 417-1; 417-2 | G210: 12; 16
A211: About Data protection / Confidentiality of information | B211: units | C211: 6 | D211: n/a | E211: ü | G211: 12; 16
A212: Other | B212: units | C212: 13 | D212: 21 | E212: ü | G212: 12; 16
A213: Enquiries and complaints channel - Enquiries | B213: units | C213: 489 | D213: 285 | E213: ü | F213: 102-17; 205-1; 412-1; | G213: 12; 16
A214: About Conflicts of interest | B214: units | C214: 88 | D214: 112 | E214: ü | G214: 12; 16
A215: About Internal code of conduct for securities markets | B215: units | C215: 288 | D215: 94 | E215: ü | G215: 12; 16
A216: About Anti-corruption Policy | B216: units | C216: 22 | D216: 29 | E216: ü | F216: 205-1; 205-3 | G216: 12; 16
... 181 more rows
